Cogmind - Beta 14 @@@ ROGUE MODE // 2024.10.22 @ 19:40:33 Player: WazdakkaGutsmek Result: Destroyed by E7-K0M(R) with Subdweller Machine Gun Performance ------------- Evolutions (0) 0 Regions Visited (2) 400 Robots Destroyed (20) 100 Value Destroyed (547) 547 Prototype IDs (0) 0 Alien Tech Used (0) 0 Bonus (0) 0 TOTAL SCORE: 1047 Bonus ------- None Cogmind --------- Core Integrity 0/250 Matter 285/300 Energy 99/100 System Corruption 1% Temperature Cool (0) Movement Treading (320) Ox2 Location -10/Subcaves Parts ------- > --- POWER (1) -------- (None) > --- PROPULSION (2) --- Light Treads Light Treads > --- UTILITY (2) ------ Huge Storage Unit Structural Scanner > --- WEAPON (2) ------- Subdweller Laser Assault Rifle > --- INVENTORY (25) --- Light Treads Assault Rifle Assault Rifle Assault Rifle Peak State ------------ > --- POWER ------------ Subdweller Power Source > --- PROPULSION ------- Light Treads Light Treads > --- UTILITY ---------- Huge Storage Unit Structural Scanner > --- WEAPON ----------- Subdweller Laser Assault Rifle > --- INVENTORY -------- Light Treads Assault Rifle Assault Rifle Assault Rifle [Rating: 9] Favorites ----------- Power Ion Engine Engine Ion Engine Propulsion Light Treads Treads Light Treads Leg Aluminum Leg Utility Huge Storage Unit Device Structural Scanner Storage Huge Storage Unit Weapon Assault Rifle Energy Gun Subdweller Laser Ballistic Gun Assault Rifle Build | -11 -10 -10 ------- Run | Yrd Mat Sub Slots Evolved . | . . . Power . | . . . Propulsion . | . . . Utility . | . . . Weapon . | . . . Parts Attached 11 | . 8 3 Power 3 | . 1 2 Engine 3 | . 1 2 Core . | . . . Reactor . | . . . Propulsion 2 | . 2 . Treads 2 | . 2 . Leg . | . . . Wheel . | . . . Hover . | . . . Flight . | . . . Utility 2 | . 2 . Device 1 | . 1 . Storage 1 | . 1 . Processor . | . . . Hackware . | . . . Protection . | . . . Artifact . | . . . Weapon 4 | . 3 1 Energy Gun 1 | . . 1 Energy Cannon . | . . . Ballistic Gun 3 | . 3 . Ballistic Cannon . | . . . Launcher . | . . . Special Weapon . | . . . Impact Weapon . | . . . Slashing Weapon . | . . . Piercing Weapon . | . . . Special Melee Weapon . | . . . Unidentified Prototypes . | . . . Parts Lost 2 | . 1 1 Power 1 | . . 1 Propulsion 1 | . 1 . Utility . | . . . Weapon . | . . . Highest Loss Streak 1 | . 1 1 To Critical Strikes . | . . . Average Slot Usage (%) 91 | . 88 93 Engine 11 | . 14 8 Treads 24 | . 20 28 Leg 3 | . 7 . Device 8 | . 3 14 Storage 14 | . 14 14 Energy Gun 7 | . 2 12 Ballistic Gun 20 | . 25 15 Peak Build Rating 9 | . 7 9 Average Rating 7 | . 6 7 On Entrance 6 | 6 6 7 Naked Turns . | . . . Heaviest Build 92 | 13 88 92 Greatest Support 40 | 20 40 40 Greatest Overweight (x) 2 | . 2 2 Average Overweight (x) 1 | . . 2 Largest Inventory Capacity 25 | . 25 25 Average Capacity 18 | . 12 25 Most Carried 6 | . 6 5 Average Carried 3 | . 3 3 Final Capacity 25 | 8 25 25 Final Carried 6 | 6 3 4 Class Distribution -------------------- 100% | Mutant Dominant Class ---------------- Mutant | -10/Materials Mutant | -10/Subcaves Resources | -11 -10 -10 ----------- Run | Yrd Mat Sub Matter Collected 747 | 193 426 128 Remotely . | . . . Salvage Created 801 | . 559 242 Parts 56 | . 42 14 Haulers Intercepted 1 | . 1 . Recyclers Shooed 1 | . 1 . Parts Field Recycled . | . . . Retrieved Matter . | . . . Parts Self-Destructed 7 | . . 7 Prevented . | . . . Kills | -11 -10 -10 ------- Run | Yrd Mat Sub Combat Hostiles Destroyed 16 | . 12 4 Guns 16 | . 12 4 Classes Destroyed 8 | . 5 3 Hauler 1 | . 1 . Recycler 1 | . 1 . Watcher 2 | . 2 . Swarmer 4 | . 3 1 Grunt 9 | . 9 . Sentry 1 | . . 1 Artisan 2 | . . 2 Subdweller 2 | . . 2 Best Kill Streak 5 | . 5 2 Combat Bots Only 5 | . 5 2 Max Kills in Single Turn 1 | . 1 1 Gunslinging . | . . . Exploded . | . . . Melee . | . . . Uniques/NPCs Destroyed . | . . . Combat | -11 -10 -10 -------- Run | Yrd Mat Sub Hostile Shots Fired 83 | . 52 31 Missed 24 | . 16 8 Damage Taken 918 | . 452 466 Core 262 | . 76 186 Absorbed by Shields . | . . . Core Remaining (%) 100 | 100 . . Volleys Fired 78 | . 55 23 Largest 2 | . 2 2 Hottest 80 | . 40 80 Shots Fired 152 | . 110 42 Gun 152 | . 110 42 Cannon . | . . . Launcher . | . . . Special . | . . . Kinetic 138 | . 110 28 Thermal 14 | . . 14 Explosive . | . . . Electromagnetic . | . . . Robot Hit Streak 15 | . 15 12 Robot Miss Streak 4 | . 4 1 Penetration Max . | . . . Secondary Targets 1 | . 1 . Max Gunslinging Chain 1 | . 1 . Shots Hit Robots 105 | . 74 31 Core Hits 40 | . 31 9 Critical Kills 1 | . . 1 Critical Parts Destroyed . | . . . Critical Strikes 1 | . . 1 Destroy 1 | . . 1 Melee Attacks . | . . . Impact . | . . . Slashing . | . . . Piercing . | . . . Sneak Attacks . | . . . Combat Hostiles . | . . . Follow-up Attacks . | . . . Damage Inflicted 1379 | . 946 433 Guns 1379 | . 946 433 Cannons . | . . . Explosions . | . . . Melee . | . . . Ramming . | . . . Kinetic 1211 | . 946 265 Thermal 168 | . . 168 Explosive . | . . . Electromagnetic . | . . . Impact . | . . . Slashing . | . . . Piercing . | . . . Highest Corruption 1 | . 1 1 Average Corruption 1 | . 1 1 Corruption Purged . | . . . Corruption Blocked . | . . . Effects 26 | . 12 14 Message Errors 5 | . 2 3 Matter Fused 7 | . 2 5 Heat Flow Errors 2 | . 2 . Energy Discharges 3 | . 2 1 Parts Rejected 1 | . 1 . Parts Fused 1 | . . 1 Data Loss (minor) 3 | . 1 2 Data Loss (major) 1 | . . 1 Misfires 2 | . 2 . Alerts 1 | . . 1 Overload Shots . | . . . Overflow Damage . | . . . Projectiles . | . . . Explosions . | . . . Melee . | . . . Knockbacks . | . . . Impact . | . . . Kinetic . | . . . Secondary . | . . . Self-Inflicted Damage . | . . . Shots . | . . . Rammed . | . . . Targets Rammed . | . . . Kicked . | . . . Crushed . | . . . Highest Temperature 190 | . 190 . Average Temperature 49 | . 49 . Received Heat Transfer 342 | . 237 105 Siege Activations . | . . . Robots Corrupted . | . . . Combat Hostiles . | . . . Parts Fried . | . . . Impact Corruptions . | . . . Robots Melted . | . . . Combat Hostiles . | . . . Parts Melted 2 | . . 2 Heat Transferred 200 | . . 200 Parts Sabotaged . | . . . Parts Stolen . | . . . Parts Stripped . | . . . Power Chain Reactions . | . . . Alert | -11 -10 -10 ------- Run | Yrd Mat Sub Peak Influence 302 | . 302 . Initial . | . . . Average 128 | . 128 . Maximum Alert Level 1 | . 1 . Low Security (%) 71 | . 71 . Level 1 28 | . 28 . Level 2 . | . . . Level 3 . | . . . Level 4 . | . . . Level 5 . | . . . High Security . | . . . Max Security . | . . . Squads Dispatched 1 | . 1 . Investigation 1 | . 1 . Extermination . | . . . Reinforcement . | . . . Assault . | . . . Garrison . | . . . Intercept . | . . . Searches Triggered . | . . . Construction Impeded . | . . . Haulers Reinforced . | . . . Active Scanning Responses . | . . . Cargo Convoy Interrupts . | . . . Stealth | -11 -10 -10 --------- Run | Yrd Mat Sub Distress Signals 2 | . 2 . Communications Jammed . | . . . Distress Signals . | . . . Times Spotted 31 | . 25 6 Peak Tracking Total 7 | . 7 3 Tactical Retreats 2 | . 2 . Traps | -11 -10 -10 ------- Run | Yrd Mat Sub Traps Triggered 2 | . 1 1 Indirectly . | . . . Trap Hack Attempts . | . . . Triggered . | . . . Disarmed . | . . . Reprogrammed . | . . . Reused . | . . . Traps Extracted . | . . . Installed . | . . . Triggered . | . . . Machines | -11 -10 -10 ---------- Run | Yrd Mat Sub Machines Disabled 1 | . 1 . Max in Single Turn 1 | . 1 . Machines Repaired . | . . . Machines Dismantled . | . . . Machines Sabotaged . | . . . Overloaded Fab Kills . | . . . Hacking | -11 -10 -10 --------- Run | Yrd Mat Sub Machines Accessed 8 | . 8 . Terminals 7 | . 7 . Fabricators . | . . . Repair Stations . | . . . Recycling Units 1 | . 1 . Scanalyzers . | . . . Garrison Access . | . . . Total Hacks 14 | . 14 . Successful 6 | . 6 . Failed 8 | . 8 . Catastrophic 2 | . 2 . Database Lockouts . | . . . Manual 12 | . 12 . Terminals 12 | . 12 . Fabricators . | . . . Repair Stations . | . . . Recycling Units 2 | . 2 . Scanalyzers . | . . . Garrison Access . | . . . Terminal Hacks . | . . . Fabricator Hacks . | . . . Repair Station Hacks . | . . . Recycling Unit Hacks . | . . . Scanalyzer . | . . . Garrison Access Hacks . | . . . Unauthorized Hacks 6 | . 6 . Terminals 6 | . 6 . Botnet 1 | . 1 . Skim 5 | . 5 . Fabricators . | . . . Repair Stations . | . . . Recycling Units . | . . . Scanalyzers . | . . . Garrison Access . | . . . Data Cores Recovered . | . . . Used . | . . . Hacking Detections 3 | . 3 . Full Trace Events 1 | . 1 . Feedback Events 1 | . 1 . Corruption 1 | . 1 . Feedback Blocked . | . . . Robot Schematics Acquired . | . . . Robots Built . | . . . Authchips . | . . . Time . | . . . Total Robot Build Rating . | . . . Part Schematics Acquired . | . . . Parts Built . | . . . Authchips . | . . . Time . | . . . Total Part Build Rating . | . . . Parts Repaired . | . . . Time . | . . . Parts Recycled . | . . . Recycled Matter . | . . . Retrieved Matter . | . . . Retrieved Components . | . . . Parts Scanalyzed . | . . . Part Schematics Acquired . | . . . Parts Damaged . | . . . Bothacking | -11 -10 -10 ------------ Run | Yrd Mat Sub Used RIF Installer . | . . . Robots Hacked . | . . . Non-combat . | . . . Combat . | . . . Robot Hacks Applied . | . . . Relay Couplers Released . | . . . Fabnet Peak Effective % . | . . . Robots Rewired . | . . . Allies Hacked . | . . . Hacks Repelled . | . . . Allies | -11 -10 -10 -------- Run | Yrd Mat Sub Total Allies . | . . . Largest Group . | . . . Highest-Rated Group . | . . . Highest-Rated Ally . | . . . Total Orders . | . . . Ally Attacks . | . . . Total Damage . | . . . Kills . | . . . Allies Corrupted . | . . . Allies Melted . | . . . Intel | -11 -10 -10 ------- Run | Yrd Mat Sub Robot Analysis Total . | . . . Derelict Logs Recovered 1 | . . 1 Drone Launches . | . . . Drone Recoveries . | . . . Exploration | -11 -10 -10 ------------- Run | Yrd Mat Sub Turns Passed 2929 | . 1556 1373 Spaces Moved 1038 | 1 631 406 Core . | . . . Treads 795 | . 389 406 Legs 243 | 1 242 . Wheels . | . . . Hover . | . . . Flight . | . . . Fastest Speed 120 | 120 120 320 Average Speed 234 | 120 179 320 Slowest Speed 320 | 120 320 320 Overloaded Moves . | . . . Propulsion Burnouts . | . . . Robots Hopped . | . . . Cave-ins Triggered . | . . . Exploration Rate (%) 39 | 2 90 25 Regions Visited 2 Branch Regions 1 Pre-discovered Areas 1 | . 1 . Known Exits Taken . | . . . Unknown Exits Taken 2 | 1 1 . Scrap Searched 7 | . . 7 Spaces Dug . | . . . Terrain Destroyed . | . . . Melee . | . . . Projectile . | . . . AOE . | . . . Terrain Rammed . | . . . Walls Destroyed . | . . . Machines Disabled . | . . . Actions | -11 -10 -10 --------- Run | Yrd Mat Sub Total 1387 | . 950 437 Wait 246 | . 245 1 Move 1036 | . 630 406 Hop . | . . . Pick Up 6 | . 4 2 Fast Attach 5 | . 4 1 Attach 5 | . 4 1 Detach . | . . . Swap 1 | . . 1 Drop 10 | . 8 2 Fire 78 | . 55 23 Melee . | . . . Ram . | . . . Kick . | . . . Crush . | . . . Escape Stasis . | . . . Rewire . | . . . Trap . | . . . Miscellaneous . | . . . Route ------- -11/Scrapyard -10/Materials (discovered 5 exits: [*Mat x2] / *Min x2 / [*Sub]) -10/Subcaves (discovered 2 exits: Mat x2) History --------- Turn | Location | Event 1 | -11/Scrapyard | Discovered new exit (range 0) 1 | -11/Scrapyard | Entered Materials 307 | -10/Materials | Build established: Mutant 613 | -10/Materials | Learned Storage trap positions 641 | -10/Materials | Identified exit to Mines 658 | -10/Materials | Learned 2 Mines zone layouts 665 | -10/Materials | Learned location of 1 exit from Storage 666 | -10/Materials | Loaded intel: 14 trap records 670 | -10/Materials | Learned location of Mines (-10) 685 | -10/Materials | Learned Storage terminal intel 780 | -10/Materials | Discovered new exit (range 11) 895 | -10/Materials | Discovered new exit (range 4) 1538 | -10/Materials | Discovered new exit (range 6) 1557 | -10/Materials | Entered Subcaves 1558 | -10/Subcaves | Identified exit to Materials 2085 | -10/Subcaves | Ambushed by angry Subdweller bent on revenge 2087 | -10/Subcaves | Core integrity fell below 50% 2290 | -10/Subcaves | Learned Materials emergency access door positions 2926 | -10/Subcaves | A Subdweller sparked back to life 2926 | -10/Subcaves | A Subdweller sparked back to life 2927 | -10/Subcaves | Core integrity fell below 20% 2930 | -10/Subcaves | Destroyed by E7-K0M(R) with Subdweller Machine Gun Last Messages --------------- 02794_ System corrupted: Component data lost. 02795_ Acquired 18 matter. 02796_ Lgt. Ion Engine fries itself beyond repair. 02808_ Flight Unit fries itself beyond repair. 02810_ Y-45 Defender destroyed. 02813_ Acquired 16 matter. 02819_ Lgt. Treads fries itself beyond repair. 02822_ Heat Sink fries itself beyond repair. 02871_ System corrupted: Energy discharge (-33). 02912_ O1-D7C(u) tweaks Twisted Machinery. 02919_ Sub. Laser shoots sparks and powers down. 02919_ O1-D7C(u) cries out in pain. 02919_ O1-D7C(u) destroyed. 02921_ XNONNVFDP=9K#WF8D4GRS 02923_ II-AVW(R): "SUBMAD!" 02926_ VY-M2U(R) creaks and sparks as it begins to move. 02926_ E7-K0M(R) creaks and sparks as it begins to move. Map ----- +----------------------------------------------------+ | ?????????????????????????????????????????????????? | | ?????????????????????????????????????????????????? | | ?????????????????????????????????????????????????? | | ?????????????????????????????????????????????????? | | ?????????????????????????????????????????????????? | | ?????????????????????????????????????????????????? | | ?????????????????????????????????????????????????? | | ??????????????????#######????????????????????????? | | ??????????????????#######????????????????????????? | | ???????????######?## ##???? #???????????????? | | ??????????###### ? #??? ##???????????????? | | ??????????### ? #??? ####?????????????? | | ??????????## ? #### <####?????????????? | | ?????????### ?? #### ##???????????? | | ????????#### ? ## ?<##???????????? | | ???????#### ### R ##???????????? | | ???????### #### << #???????????? | | ???????## #### R # ????????????? | | ???????## ## ## < ???????????? | | ???????## ## ## ## ???????????? | | ??????????## ???????????? | | ??????????## ???????????? | | ??????????## ##??????????????? | | ??????????## = ####??????????????? | | ??????????## *% ########??????????????? | | ???########## ## @#######????????????????? | | ???######### ## #"##???????????????????? | | ???## # ## "##???????????????????? | | ???## # ### ## ## ##???????????????????? | | ##### ########## ###??????????????????? | | ##### ########## ##??????????????????? | | ### ##?????### ###??????????????????? | | ##???????? ##"??????????????????? | | ## ###???????? ##???????????????????? | | ##### # #### ???????? "#???????????????????? | | ####### ## ## ?????????R" ##??????????????????? | | ##### ###??????????"" ##??????????????????? | | ##### ## ???????????""##??????????????????? | | ### ?????????????" #??????????????????? | | ##### ?????????????????????????????????? | | ##### ?????????????????????????????????? | | ##### ????????????????????????????????? | | #### ##### ?????????????????????????????????? | | #### ##?## ?????????????????????????????????? | | ??### ###??? ??????????????????????????????????? | | ??####### ??????????????????????????????????????? | | ????######???????????????????????????????????????? | | ?????????????????????????????????????????????????? | | ?????????????????????????????????????????????????? | | ?????????????????????????????????????????????????? | +----------------------------------------------------+ Best States ------------- Heat Dissipation 25 Energy Generation 15 Energy Capacity 250 Matter Stores 300 Matter Capacity 300 Sight Range 16 Terrain Scan Density 10 Evasion (%) 55 Recoil Reduction 2 Item Schematics ----------------- None Robot Schematics ------------------ None Fabricated ------------ Nothing Alien Tech Used ----------------- None Achievements -------------- None Challenges ------------ None Game ------ Seed FluxCoordinationPrototype Manual? 0 Play Time 00:15:24 Cumulative 71.3 hours Start 2024.10.22 @ 18:32:36 End 2024.10.22 @ 19:40:33 Sessions 2 Manual Loads 0 Difficulty Rogue Special Mode None Game No. 67 Rogue 49 Adventurer 16 Explorer 2 Win Type - Total 1 Types 1/0/0/0/0/0/0/0/0 Lore% 16 Gallery% 45 Achievement% 39 Wizard Run 0 Options --------- Layout 2 ASCII 0 Keyboard 0 Movement Mouse Keybinds 1 Fullscreen 2 Font 24/Terminus Map View 50x44 Zoom Use 0% Tactical HUD 1 Map Filters NONE Filters NONE Steam X RUN: 6ee51e8a-3790-4022-b1ee-c6cd5cdacc76